Cogmind - Beta 9.4 @@@ ROGUE MODE // 2020.03.29 @ 17:45:16 Player: High Tyrol Result: Self-destructed Performance ------------- Evolutions (1) 500 Regions Visited (3) 600 Robots Destroyed (7) 35 Value Destroyed (103) 103 Prototype IDs (3) 60 Alien Tech Used (0) 0 Bonus (-409) -409 TOTAL SCORE: 889 Bonus ------- Friendly Fire -409 Cogmind --------- Core Integrity 400/400 Matter 295/300 Energy 250/250 System Corruption 0% Temperature Cool (51) Movement Treading (180) Ox1 Location -9/Materials Parts ------- > --- POWER (1) -------- Ion Engine > --- PROPULSION (2) --- Light Treads Light Treads > --- UTILITY (3) ------ Large Storage Unit Large Storage Unit > --- WEAPON (3) ------- Beam Cannon Grenade Launcher Hammer > --- INVENTORY (16) --- Light Ion Engine Light Ion Engine Small Laser Hammer Peak State ------------ > --- POWER ------------ Ion Engine > --- PROPULSION ------- Light Treads Light Treads > --- UTILITY ---------- Large Storage Unit Large Storage Unit > --- WEAPON ----------- Small Laser Beam Cannon Hammer > --- INVENTORY -------- Light Ion Engine Light Ion Engine Grenade Launcher Hammer [Rating: 8] Favorites ----------- Power Ion Engine Engine Ion Engine Propulsion Light Treads Treads Light Treads Wheel Compact Wheel Utility Large Storage Unit Storage Large Storage Unit Weapon Hammer Energy Gun EM Pulse Gun Energy Cannon Beam Cannon Launcher Grenade Launcher Impact Weapon Hammer Build | -11 -10 -10 -9 ------- Run | Scr Mat Min Mat Slots Evolved 2 | . . . 2 Power . | . . . . Propulsion . | . . . . Utility 1 | . . . 1 Weapon 1 | . . . 1 Parts Attached 15 | 4 8 1 2 Power 2 | 1 1 . . Engine 2 | 1 1 . . Core . | . . . . Reactor . | . . . . Propulsion 4 | 1 3 . . Treads 2 | . 2 . . Leg . | . . . . Wheel 2 | 1 1 . . Hover . | . . . . Flight . | . . . . Utility 3 | 1 2 . . Device . | . . . . Storage 3 | 1 2 . . Processor . | . . . . Hackware . | . . . . Protection . | . . . . Artifact . | . . . . Weapon 6 | 1 2 1 2 Energy Gun 3 | 1 1 . 1 Energy Cannon 1 | . . 1 . Ballistic Gun . | . . . . Ballistic Cannon . | . . . . Launcher 1 | . . . 1 Special Weapon . | . . . . Impact Weapon 1 | . 1 . . Slashing Weapon . | . . . . Piercing Weapon . | . . . . Special Melee Weapon . | . . . . Unidentified Prototypes . | . . . . Parts Lost 3 | . 3 . . Power . | . . . . Propulsion 1 | . 1 . . Utility . | . . . . Weapon 2 | . 2 . . Highest Loss Streak 3 | . 3 . . Average Slot Usage (%) 88 | . 77 100 88 Engine 13 | . 14 14 11 Treads 17 | . 7 28 22 Wheel 6 | . 13 . . Storage 24 | . 22 28 22 Energy Gun 4 | . 6 . 9 Energy Cannon 7 | . . 14 11 Impact Weapon 13 | . 13 14 11 Naked Turns . | . . . . Heaviest Build 45 | 9 41 42 45 Greatest Support 40 | 16 40 40 40 Greatest Overweight (x) 2 | . 2 1 1 Average Overweight (x) . | . . 1 1 Largest Inventory Capacity 16 | 6 16 16 16 Average Capacity 13 | 5 11 16 16 Most Carried 7 | 6 7 5 4 Average Carried 4 | 3 5 3 4 Final Capacity 16 | 6 16 16 16 Final Carried 6 | 6 4 5 4 Class Distribution -------------------- 100% | Mutant Dominant Class ---------------- Mutant | -10/Materials Mutant | -10/Mines Mutant | -9/Materials Resources | -11 -10 -10 -9 ----------- Run | Scr Mat Min Mat Matter Collected 350 | 240 45 30 35 Remotely . | . . . . Salvage Created 333 | 72 94 55 112 Parts 7 | 1 2 2 2 Haulers Intercepted . | . . . . Recyclers Shooed . | . . . . Parts Field Recycled . | . . . . Retrieved Matter . | . . . . Parts Self-Destructed . | . . . . Prevented . | . . . . Kills | -11 -10 -10 -9 ------- Run | Scr Mat Min Mat Combat Hostiles Destroyed 2 | . 2 . . Melee 2 | . 2 . . Classes Destroyed 2 | 1 1 . . Recycler 2 | 1 . 1 . Grunt 5 | . 2 . 3 Best Kill Streak 2 | 1 2 1 . Combat Bots Only 2 | . 2 . . Max Kills in Single Turn 3 | 1 1 1 3 Gunslinging . | . . . . Exploded . | . . . . Melee 1 | . 1 . . Uniques/NPCs Destroyed . | . . . . Combat | -11 -10 -10 -9 -------- Run | Scr Mat Min Mat Damage Taken 428 | . 327 . 101 Core 63 | . 63 . . Absorbed by Shields . | . . . . Core Remaining (%) 87 | 100 . 74 . Volleys Fired 4 | 2 . . 2 Largest 2 | 1 . . 2 Hottest 90 | 40 . . 90 Shots Fired 6 | 2 . . 4 Gun 2 | 2 . . . Cannon 2 | . . . 2 Launcher 2 | . . . 2 Special . | . . . . Kinetic . | . . . . Thermal 2 | . . . 2 Explosive 2 | . . . 2 Electromagnetic 2 | 2 . . . Robot Hit Streak 2 | 2 . . 1 Robot Miss Streak 2 | . . . 2 Penetration Max . | . . . . Secondary Targets . | . . . . Shots Hit Robots 13 | 2 9 1 1 Core Hits 10 | 1 2 1 6 Critical Hits . | . . . . Critical Kills . | . . . . Critical Parts Destroyed . | . . . . Melee Attacks 13 | . 12 1 . Impact 13 | . 12 1 . Slashing . | . . . . Piercing . | . . . . Sneak Attacks 1 | . . 1 . Combat Hostiles . | . . . . Follow-up Attacks . | . . . . Damage Inflicted 380 | 28 169 72 111 Guns 28 | 28 . . . Cannons 18 | . . . 18 Explosions 93 | . . . 93 Melee 241 | . 169 72 . Ramming . | . . . . Kinetic . | . . . . Thermal 18 | . . . 18 Explosive 93 | . . . 93 Electromagnetic 28 | 28 . . . Impact 241 | . 169 72 . Slashing . | . . . . Piercing . | . . . . Highest Corruption . | . . . . Average Corruption . | . . . . Corruption Purged . | . . . . Overload Shots . | . . . . Overflow Damage . | . . . . Projectiles . | . . . . Explosions . | . . . . Melee . | . . . . Knockbacks 2 | . 2 . . Impact 2 | . 2 . . Kinetic . | . . . . Secondary . | . . . . Self-Inflicted Damage 43 | . . . 43 Shots 2 | . . . 2 Rammed . | . . . . Targets Rammed . | . . . . Kicked . | . . . . Crushed . | . . . . Highest Temperature 51 | . . . 51 Average Temperature 26 | . . . 26 Received Heat Transfer 201 | . 183 . 18 Siege Activations . | . . . . Robots Corrupted . | . . . . Combat Hostiles . | . . . . Parts Fried . | . . . . Impact Corruptions . | . . . . Robots Melted . | . . . . Combat Hostiles . | . . . . Parts Melted . | . . . . Heat Transferred 37 | . . . 37 Parts Sabotaged . | . . . . Parts Stolen . | . . . . Parts Stripped . | . . . . Power Chain Reactions . | . . . . Missiles Intercepted . | . . . . Alert | -11 -10 -10 -9 ------- Run | Scr Mat Min Mat Peak Influence 59 | 5 59 27 54 Average Influence 22 | 3 26 24 22 Maximum Alert Level . | . . . . Low Security (%) 100 | 100 100 100 100 Level 1 . | . . . . Level 2 . | . . . . Level 3 . | . . . . Level 4 . | . . . . Level 5 . | . . . . High Security . | . . . . Max Security . | . . . . Squads Dispatched . | . . . . Investigation . | . . . . Extermination . | . . . . Reinforcement . | . . . . Assault . | . . . . Garrison . | . . . . Intercept . | . . . . Construction Impeded . | . . . . Haulers Reinforced . | . . . . Stealth | -11 -10 -10 -9 --------- Run | Scr Mat Min Mat Distress Signals 1 | . 1 . . Communications Jammed . | . . . . Distress Signals . | . . . . Times Spotted 6 | . 5 . 1 Peak Tracking Total 3 | . 3 . 1 Tactical Retreats . | . . . . Traps | -11 -10 -10 -9 ------- Run | Scr Mat Min Mat Traps Triggered . | . . . . Indirectly . | . . . . Trap Hack Attempts . | . . . . Triggered . | . . . . Disarmed . | . . . . Reprogrammed . | . . . . Reused . | . . . . Traps Extracted . | . . . . Installed . | . . . . Triggered . | . . . . Machines | -11 -10 -10 -9 ---------- Run | Scr Mat Min Mat Machines Disabled 1 | . . . 1 Max in Single Turn 1 | . . . 1 Machines Sabotaged . | . . . . Garrisons Compromised . | . . . . Overloaded Fab Kills . | . . . . Fab Network Shutdowns . | . . . . Hacking | -11 -10 -10 -9 --------- Run | Scr Mat Min Mat Machines Accessed 3 | . 2 . 1 Terminals 3 | . 2 . 1 Fabricators . | . . . . Repair Stations . | . . . . Recycling Units . | . . . . Scanalyzers . | . . . . Garrison Access . | . . . . Total Hacks 10 | . 8 . 2 Successful 5 | . 4 . 1 Failed 5 | . 4 . 1 Catastrophic . | . . . . Database Lockouts . | . . . . Manual 4 | . 3 . 1 Terminals 10 | . 8 . 2 Fabricators . | . . . . Repair Stations . | . . . . Recycling Units . | . . . . Scanalyzers . | . . . . Garrison Access . | . . . . Terminal Hacks 2 | . 2 . . Prototype ID Bank 2 | . 2 . . Fabricator Hacks . | . . . . Repair Station Hacks . | . . . . Recycling Unit Hacks . | . . . . Scanalyzer . | . . . . Garrison Access Hacks . | . . . . Unauthorized Hacks 7 | . 5 . 2 Terminals 3 | . 2 . 1 Botnet 3 | . 2 . 1 Fabricators . | . . . . Repair Stations . | . . . . Recycling Units . | . . . . Scanalyzers . | . . . . Garrison Access . | . . . . Data Cores Recovered . | . . . . Used . | . . . . Hacking Detections 1 | . 1 . . Full Trace Events . | . . . . Feedback Events . | . . . . Feedback Blocked . | . . . . Robot Schematics Acquired . | . . . . Robots Built . | . . . . Matter . | . . . . Time . | . . . . Total Robot Build Rating . | . . . . Part Schematics Acquired . | . . . . Parts Built . | . . . . Matter . | . . . . Time . | . . . . Total Part Build Rating . | . . . . Parts Repaired . | . . . . Time . | . . . . Parts Recycled . | . . . . Recycled Matter . | . . . . Retrieved Matter . | . . . . Retrieved Components . | . . . . Parts Scanalyzed . | . . . . Part Schematics Acquired . | . . . . Parts Damaged . | . . . . Bothacking | -11 -10 -10 -9 ------------ Run | Scr Mat Min Mat Used RIF Installer . | . . . . Robots Hacked . | . . . . Non-combat . | . . . . Combat . | . . . . Robot Hacks Applied . | . . . . Relay Couplers Released . | . . . . Robots Rewired . | . . . . Allies Hacked . | . . . . Hacks Repelled . | . . . . Allies | -11 -10 -10 -9 -------- Run | Scr Mat Min Mat Total Allies 3 | . . 3 . Largest Group 3 | . . 3 3 Highest-Rated Group 40 | . . 40 40 Highest-Rated Ally 16 | . . 16 16 Total Orders . | . . . . Ally Attacks 5 | . . . 5 Total Damage 21 | . . . 21 Kills . | . . . . Allies Corrupted . | . . . . Allies Melted . | . . . . Intel | -11 -10 -10 -9 ------- Run | Scr Mat Min Mat Robot Analysis Total . | . . . . Derelict Logs Recovered . | . . . . Drone Launches . | . . . . Drone Recoveries . | . . . . Exploration | -11 -10 -10 -9 ------------- Run | Scr Mat Min Mat Turns Passed 668 | 71 283 249 65 Spaces Moved 422 | 57 202 132 31 Core 7 | 7 . . . Treads 207 | . 44 132 31 Legs . | . . . . Wheels 208 | 50 158 . . Hover . | . . . . Flight . | . . . . Fastest Speed 50 | 50 90 180 180 Average Speed 137 | 93 115 180 180 Slowest Speed 180 | 100 160 180 180 Overloaded Moves . | . . . . Propulsion Burnouts . | . . . . Robots Hopped . | . . . . Cave-ins Triggered . | . . . . Exploration Rate (%) 19 | 3 32 36 6 Regions Visited 3 Branch Regions 1 Pre-discovered Areas . | . . . . Known Exits Taken . | . . . . Unknown Exits Taken 3 | 1 1 1 . Scrap Searched 1 | . . 1 . Spaces Dug . | . . . . Terrain Destroyed 12 | . . . 12 Melee . | . . . . Projectile . | . . . . AOE 12 | . . . 12 Actions | -11 -10 -10 -9 --------- Run | Scr Mat Min Mat Total 482 | 72 233 142 35 Wait 13 | . 6 7 . Move 419 | 56 201 131 31 Hop . | . . . . Pick Up 15 | 10 3 2 . Fast Attach 3 | . 3 . . Attach 11 | 4 5 1 1 Detach . | . . . . Swap 1 | . . . 1 Drop 3 | . 3 . . Fire 4 | 2 . . 2 Melee 13 | . 12 1 . Ram . | . . . . Kick . | . . . . Crush . | . . . . Escape Stasis . | . . . . Rewire . | . . . . Trap . | . . . . Miscellaneous . | . . . . Route ------- -11/Scrapyard -10/Materials -10/Mines -9/Materials History --------- Turn | Location | Event 16 | -11/Scrapyard | Discovered new exit (range 15) 72 | -11/Scrapyard | Entered Materials 258 | -10/Materials | Lost 3 parts (1n2w) 303 | -10/Materials | Build established: Mutant 341 | -10/Materials | Discovered new exit (range 8) 355 | -10/Materials | Entered Mines 434 | -10/Mines | Assembled infested the area 439 | -10/Mines | Assisted by a Guerilla fighting off Assembled 556 | -10/Mines | Discovered new exit (range 8) 578 | -10/Mines | Assisted by bots powering up and referring to "LRC-V3" 604 | -10/Mines | Entered Materials 604 | -9/Materials | Accompanied by 3 allies 604 | -9/Materials | Evolved 2 slots: Utility x1, Weapon x1 669 | -9/Materials | Self-destructed Last Messages --------------- 00574_ Acquired Hammer. 00578_ Trooper 1a: "Hello LRC-V3. What is your command?" 00578_ Mercenary 1a: "Hello LRC-V3. What is your command?" 00578_ Trooper 1b: "Hello LRC-V3. What is your command?" PARAMETERS=UTILITY_1,WEAPON_1 LOCATION=UNKNOWN GOAL=ESCAPE 00632_ Connecting with Terminal... 00632_ Current location identified: Materials >>Trojan(Botnet) Trojan loaded successfully. Testing... Terminal linked with 0 systems. Awaiting botnet instructions. 00663_ Recycling Unit disabled. 00663_ Shield Generator tumbles out of recycling unit. 00666_ Trooper 1a destroyed. 00666_ Mercenary 1a destroyed. 00666_ Trooper 1b destroyed. 00667_ Acquired 35 matter. Map ----- +----------------------------------------------------+ | ?????????????????????????????????????????????????? | | ?????????????????????????????????????????????????? | | ?????????????????????????????????????????????????? | | ?????????????????????????????????????????????????? | | ?????????????????????????????????????????????????? | | ?????????????????????????????????????????????????? | | ?????????????????????????????????????????????????? | | ?????????????????????????????????????????????????? | | ?????????????????????????????????????????????????? | | ?????????????????????????????????????????????????? | | ?????????????????????????????????????????????????? | | ?????????????????????????????????????????????????? | | ?????????????????????????????????????????????????? | | ???????????????? ???????????????????????????????? | | ????????????????? ??????????????????????????????? | | ????????????????? ???##????????????????????????? | | ?????????????????"" ?### ##???#??????????????????? | | ???????????????#""" # Y #??????????????????? | | ???????????????#""" #"" """ #??????????????????? | | ???????????????? "Y """ #??????????????????? | | ????????????????""" """ #??????????????????? | | ????????????????""" ! #??????????????????? | | ???????????????#""" ]]= #??????????????????? | | ???????????????# = ]]= #??????????????????? | | ???????????????# %%]]= #??????????????????? | | ???????????????##????# !@ #??????????????????? | | ???????????????# # ##############??????? | | ???????? #??????? | | ???????? #??????? | | ???????? #??????? | | ?????????###+### ##########+###########??????? | | ???????????????######??????# ]#????????????? | | ???????????????????????????#" """ #????????????? | | ???????????????????????????#" """ #????????????? | | ???????????????????????????#" """ #????????????? | | ???????????????????????????#T #????????????? | | ???????????????????????????#" """ #????????????? | | ???????????????????????????#" """ #????????????? | | ???????????????????????????#" """ /#????????????? | | ???????????????????????????# #????????????? | | ???????????????????????????##########????????????? | | ?????????????????????????????????????????????????? | | | | | | | | | | | | | | | | | +----------------------------------------------------+ Best States ------------- Heat Dissipation 28 Energy Generation 10 Energy Capacity 250 Matter Stores 300 Matter Capacity 300 Sight Range 16 Terrain Scan Density 10 Evasion (%) 42 Recoil Reduction 2 Item Schematics ----------------- None Robot Schematics ------------------ None Fabricated ------------ Nothing Alien Tech Used ----------------- None Achievements -------------- None Challenges ------------ None Game ------ Seed HighTyrol222221 Manual? 1 Play Time 00:11:07 Cumulative 6.5 hours Start 2020.03.29 @ 17:34:48 End 2020.03.29 @ 17:45:16 Sessions 1 Manual Loads 0 Difficulty Rogue Special Mode None Game No. 18 Rogue 18 Adventurer 0 Explorer 0 Win Type - Total 0 Types 0/0/0/0/0/0/0 Lore% 2 Gallery% 9 Achievement% 11 Wizard Run 0 Options --------- ASCII 0 Keyboard 0 Movement Arrows Keybinds 0 Fullscreen 1 Font 12/Tallcaps Map View 83x54 Tactical HUD 1 Map Filters NONE Filters NONE Steam 1 RUN: 472e97ef-7d0e-4074-9603-dd8b240ed271